bitfinex/quotes_ETHUSD_20250603
["timestamp","ask_amount","ask_price","bid_price","bid_amount"]
[1748953557450,0.838,2606.9,2606.8,3.83612091]
[1748953559150,0.02,2606.9,2606.8,3.83612091]
[1748953560677,0.02,2606.9,2606.6,8.0]
[1748953560881,0.02,2606.9,2606.7,3.83625644]
[1748953561994,0.02,2606.9,2606.6,8.0]
[1748953561995,0.02,2606.9,2606.6,11.83640985]
[1748953562189,0.02,2606.9,2606.6,8.0]
[1748953562499,0.02,2606.9,2606.8,3.83612091]
[1748953564096,0.02,2606.9,2606.7,6.75130925]
[1748953565100,0.02,2606.9,2606.7,6.75139779]
[1748953565687,0.02,2606.9,2606.7,3.83620796]
[1748953566326,0.02,2606.9,2606.6,11.83628934]
[1748953566975,0.02,2606.9,2606.7,3.83626483]
[1748953567163,0.02,2606.9,2606.6,11.83639743]
[1748953567365,0.7828,2606.8,2606.7,14.75139629]
[1748953567575,1.25538,2606.8,2606.2,2.91513016]
[1748953567776,3.923,2606.7,2606.3,3.83673565]
[1748953568009,3.923,2606.7,2606.4,8.0]
[1748953568217,0.7629,2606.6,2606.2,2.91513016]
[1748953568416,4.5994467,2606.6,2606.0,2.91513016]
[1748953568619,4.5994467,2606.6,2606.1,3.83708398]
[1748953568620,0.85224467,2606.5,2606.1,3.83708398]
[1748953568911,0.85224467,2606.5,2606.3,3.83684507]
[1748953568912,3.924,2606.5,2606.3,3.83684507]
[1748953569118,3.924,2606.5,2606.3,3.8367509]
[1748953569296,3.924,2606.5,2606.2,6.75212678]
[1748953569473,3.924,2606.5,2606.4,3.83670963]
[1748953569674,3.924,2606.5,2606.3,3.83673288]
[1748953569874,4.6869,2606.6,2606.5,3.83656244]
[1748953570110,5.19938,2606.8,2606.6,3.83640682]
[1748953570432,0.8028,2606.8,2606.6,6.75148499]
[1748953571298,0.8028,2606.8,2606.5,3.83646862]
[1748953571499,0.8028,2606.8,2606.5,3.83654568]
[1748953572922,0.8028,2606.8,2606.6,3.83640071]
[1748953573310,0.8028,2606.8,2606.7,3.83626807]
[1748953574000,0.02,2606.9,2606.7,3.83626807]
[1748953574329,0.02,2606.9,2606.6,6.75153984]
[1748953574626,0.02,2606.9,2606.8,6.75125107]
[1748953574828,0.02,2606.9,2606.8,14.75125107]
[1748953574993,0.02,2606.9,2606.8,8.0]
[1748953575385,0.02,2606.9,2606.8,11.83612091]
[1748953583241,0.02,2606.9,2606.8,14.75125107]
[1748953584872,0.02,2606.9,2606.8,11.83612091]
[1748953585033,0.02,2606.9,2606.8,14.75125107]
[1748953588764,0.02,2606.9,2606.8,8.0]
[1748953588965,0.02,2606.9,2606.8,11.83612091]
[1748953590260,0.02,2606.9,2606.8,8.0]
[1748953593458,0.7741,2606.9,2606.8,8.0]
[1748953594441,0.7741,2606.9,2606.8,11.83612091]
[1748953595152,0.7741,2606.9,2606.8,8.0]
[1748953595773,1.62758247,2606.9,2606.6,8.0]
[1748953596844,1.62758247,2606.9,2606.6,11.83640294]
[1748953597160,1.62758247,2606.9,2606.6,8.0]
[1748953597331,1.62758247,2606.9,2606.6,11.83639124]
[1748953598681,1.62758247,2606.9,2606.7,3.83624153]
[1748953598876,0.7741,2606.9,2606.7,3.83624153]
[1748953599283,0.7741,2606.9,2606.6,11.83633543]
[1748953600793,0.7741,2606.9,2606.7,3.83625268]
[1748953602797,0.7741,2606.9,2606.6,11.83633947]
[1748953603583,0.7741,2606.9,2606.7,3.83626255]
[1748953604091,0.7741,2606.9,2606.6,11.83632685]
[1748953604312,0.7741,2606.9,2606.6,8.0]
[1748953604481,0.7741,2606.9,2606.6,11.83641394]
[1748953605219,0.7741,2606.9,2606.8,3.83612091]
[1748953605501,4.6911,2606.9,2606.8,3.83612091]
[1748953605704,0.02,2606.9,2606.8,6.75125107]
[1748953606064,0.02,2606.9,2606.8,2.91513016]
[1748953606297,0.02,2606.9,2606.7,3.83623359]
[1748953607411,0.02,2606.9,2606.8,3.83612091]
[1748953608619,0.02,2606.9,2606.8,6.75125107]
[1748953611185,0.02,2606.9,2606.8,14.75125107]
[1748953616547,0.02,2606.9,2606.8,10.91513016]
[1748953616750,0.02,2606.9,2606.8,8.0]
[1748953616922,0.02,2606.9,2606.8,11.83612091]
[1748953617107,0.02,2606.9,2606.8,8.0]
[1748953618525,0.02,2606.9,2606.8,11.83612091]
[1748953619044,0.02,2606.9,2606.8,14.75125107]
[1748953622655,0.02,2606.9,2606.8,14.94396031]
[1748953626223,0.02,2606.9,2606.8,14.75125107]
[1748953627060,0.02,2606.9,2606.8,11.83612091]
[1748953627362,0.8475,2606.9,2606.7,3.83625441]
[1748953627528,0.8475,2606.9,2606.8,8.0]
[1748953628331,0.8475,2606.9,2606.8,11.83612091]
[1748953628666,0.8475,2606.9,2606.8,8.0]
[1748953629242,0.8475,2606.9,2606.8,11.83612091]
[1748953629762,0.8475,2606.9,2606.1,4.85201175]
[1748953629963,1.31582036,2606.9,2606.4,3.83663859]
[1748953630170,5.1518078,2606.9,2606.5,8.0]
[1748953630364,5.1518078,2606.9,2606.4,3.83663859]
[1748953630770,9.0688078,2606.9,2606.5,8.0]
[1748953630966,1.29046369,2606.8,2606.5,8.0]
[1748953631172,8.60047993,2606.9,2606.5,8.0]
[1748953631568,4.7645,2606.9,2606.5,11.836527]
[1748953631784,0.8475,2606.9,2606.8,3.83612091]
[1748953631996,4.7635,2606.9,2606.8,3.83612091]
[1748953633048,4.7635,2606.9,2606.7,6.75132873]
[1748953633229,4.7635,2606.9,2606.7,14.75132873]
[1748953634198,4.7635,2606.9,2606.7,8.0]
[1748953635373,4.7635,2606.9,2606.7,11.83624498]
[1748953636772,4.7635,2606.9,2606.7,8.0]
[1748953636947,4.7635,2606.9,2606.7,11.83626626]
[1748953637147,4.7635,2606.9,2606.7,8.0]
[1748953638765,4.7635,2606.9,2606.7,11.83623652]
[1748953639271,4.7635,2606.9,2606.7,14.75136668]
[1748953639962,0.8475,2606.9,2606.7,14.75136668]
[1748953640758,0.8475,2606.9,2606.7,14.75136751]
[1748953641646,0.8475,2606.9,2606.8,3.83612091]
[1748953642386,0.02,2606.9,2606.8,11.83612091]
[1748953644323,0.02,2606.9,2606.8,8.0]
[1748953646610,0.02,2606.9,2606.8,11.83612091]
[1748953653611,0.02,2606.9,2606.8,8.0]
[1748953655132,0.02,2606.9,2606.8,11.83612091]
[1748953655901,0.02,2606.9,2606.8,8.0]
[1748953659410,0.02,2606.9,2606.7,6.75138674]
[1748953660771,0.02,2606.9,2606.8,3.83612091]
[1748953660927,0.02,2606.9,2606.7,6.75131627]
[1748953663141,0.02,2606.9,2606.7,6.75131625]
[1748953663767,0.02,2606.9,2606.8,3.83612091]
[1748953666265,0.02,2606.9,2606.8,6.75125107]
[1748953673774,0.02,2606.9,2606.8,14.75125107]
[1748953675891,0.02,2606.9,2606.8,10.91513016]
[1748953676055,0.02,2606.9,2606.8,8.0]
[1748953676256,0.02,2606.9,2606.8,11.83612091]
[1748953676992,0.02,2606.9,2606.8,14.75125107]
[1748953680196,0.02,2606.9,2606.3,8.0]
[1748953680403,0.02,2606.9,2605.8,5.06086001]
[1748953680404,0.7727,2606.6,2605.8,5.06086001]
[1748953680591,3.83635673,2606.7,2605.7,3.83759899]
[1748953680592,0.7727,2606.1,2605.7,3.83759899]
[1748953680794,3.91,2606.0,2605.6,3.29321589]
[1748953680965,3.91,2606.0,2605.7,8.0]
[1748953681379,3.91,2606.0,2605.6,6.75299131]
[1748953681584,4.76198663,2606.0,2605.7,8.0]
[1748953682667,4.68929951,2606.0,2605.5,8.0]
[1748953682874,4.68929951,2606.0,2605.7,3.83773212]
[1748953682875,0.85198663,2606.0,2605.7,3.83773212]
[1748953683080,0.7727,2606.1,2605.8,2.91513016]
[1748953683318,3.91,2606.0,2605.9,3.83744579]
[1748953683523,3.91,2606.1,2605.5,0.86096972]
[1748953683732,0.7721,2606.5,2605.7,8.0]
[1748953684020,4.6821,2606.5,2606.3,3.83678081]
[1748953684315,0.46821,2606.4,2606.3,3.83678081]
[1748953684478,4.6821,2606.5,2606.3,6.75191097]
[1748953684876,4.6821,2606.5,2606.3,2.91513016]
[1748953685077,0.7721,2606.5,2606.3,2.91513016]
[1748953685913,3.91,2606.6,2606.3,6.75189185]
[1748953686220,3.91,2606.6,2606.5,2.91513016]
[1748953687120,3.91,2606.7,2606.5,2.91513016]
[1748953687482,0.7931,2606.8,2606.5,2.91513016]
[1748953687705,4.7031,2606.8,2606.6,3.83641525]
[1748953687919,5.17541,2606.8,2606.5,6.75162242]
[1748953688422,5.17541,2606.8,2606.5,2.91513016]
[1748953688635,1.26541,2606.8,2606.7,3.83626807]
[1748953688812,0.02,2606.9,2606.7,6.75139823]
[1748953689155,0.02,2606.9,2606.7,2.91513016]
[1748953692780,0.02,2606.9,2606.8,3.83612091]
[1748953692987,0.02,2606.9,2606.7,2.91513016]
[1748953693186,0.02,2606.9,2606.7,6.75128767]
[1748953693621,0.02,2606.9,2606.7,2.91513016]
[1748953695928,0.02,2606.9,2606.7,6.75132872]
[1748953696222,0.02,2606.9,2606.8,3.83612091]
[1748953701347,0.02,2606.9,2606.8,11.83612091]
[1748953731260,0.791,2606.9,2606.8,14.75125107]
[1748953737575,0.02,2606.9,2606.8,14.75125107]
[1748953746289,0.02,2606.9,2606.8,11.83612091]
[1748953746604,0.02,2606.9,2606.8,14.75125107]
[1748953747866,0.8376,2606.9,2606.8,14.75125107]
[1748953748268,0.8376,2606.9,2606.8,10.91513016]
[1748953748471,0.8376,2606.9,2606.8,14.75125107]
[1748953749868,0.8376,2606.9,2606.8,8.0]
[1748953750171,1.31216,2606.9,2606.8,8.0]
[1748953750372,1.31216,2606.9,2606.8,11.83612091]
[1748953750615,0.8376,2606.9,2606.8,11.83612091]
[1748953751631,0.8376,2606.9,2606.8,8.0]
[1748953751832,0.8376,2606.9,2606.5,2.91513016]
[1748953751833,4.67366352,2606.9,2606.6,8.0]
[1748953752044,4.67366352,2606.9,2606.3,3.83679768]
[1748953752045,4.6952,2606.8,2606.3,3.83679768]
[1748953752193,4.6952,2606.8,2606.4,6.75181916]
[1748953752392,0.85512508,2606.7,2606.4,6.75181916]
[1748953752595,0.85512508,2606.7,2606.5,8.0]
[1748953754336,0.7688,2606.5,2606.2,8.0]
[1748953754722,0.7688,2606.5,2606.1,2.91513016]
[1748953754723,4.6768,2606.5,2606.3,2.91513016]
[1748953755039,4.6768,2606.5,2606.4,8.0]
[1748953755750,3.908,2606.5,2606.4,8.0]
[1748953757412,3.908,2606.5,2606.4,11.83670963]
[1748953757827,3.908,2606.7,2606.5,3.83655575]
[1748953758045,0.7761,2606.9,2606.6,2.91513016]
[1748953758299,4.6841,2606.9,2606.8,2.91513016]
[1748953758418,5.15251,2606.9,2606.8,2.91513016]
[1748953758618,5.15251,2606.9,2606.8,10.91513016]
[1748953759848,1.24451,2606.9,2606.8,10.91513016]
[1748953761444,1.24451,2606.9,2606.8,2.91513016]
[1748953761644,0.7761,2606.9,2606.8,2.91513016]
[1748953761954,0.02,2606.9,2606.8,6.75125107]
[1748953762725,0.02,2606.9,2606.8,2.91513016]
[1748953763423,0.02,2606.9,2606.8,10.91513016]
[1748953764326,0.02,2606.9,2606.8,14.75125107]
[1748953764535,0.02,2606.9,2606.8,10.91513016]
[1748953766363,0.02,2606.9,2606.8,8.0]
[1748953766569,1.69213025,2606.9,2606.8,10.91513016]
[1748953767639,5.59913025,2606.9,2606.8,10.91513016]
[1748953772881,1.69213025,2606.9,2606.8,10.91513016]
[1748953773090,4.7526,2606.9,2606.8,10.91513016]
[1748953776748,0.02,2606.9,2606.8,14.75125107]
[1748953780883,0.02,2606.9,2606.8,10.91513016]
[1748953781082,0.02,2606.9,2606.8,14.75125107]
[1748953782124,0.7782,2606.1,2605.9,1.22025008]
[1748953782409,7.80131405,2606.0,2605.5,2.91513016]
[1748953782703,7.80131405,2606.0,2605.7,2.91513016]
[1748953782704,7.80132671,2606.0,2605.7,2.91513016]
[1748953783088,3.963,2606.0,2605.7,2.91513016]
[1748953783419,0.7782,2606.1,2605.9,2.91513016]
[1748953783579,4.7442,2606.1,2605.9,2.91513016]
[1748953783893,3.965,2606.1,2605.9,5.83026032]
[1748953784262,3.965,2606.1,2605.9,2.91513016]
[1748953784475,3.83652238,2606.6,2605.9,5.83026032]
[1748953784727,8.6510672,2606.5,2606.0,8.0]
[1748953785073,3.83671205,2606.4,2606.0,8.0]
[1748953785587,3.83671205,2606.4,2605.9,2.91513016]
[1748953785782,3.83671205,2606.4,2606.3,2.91513016]
[1748953787501,8.39871205,2606.4,2606.3,2.91513016]
[1748953788005,4.562,2606.4,2606.3,2.91513016]
[1748953788211,8.39870963,2606.4,2606.3,2.91513016]
[1748953788576,4.562,2606.4,2606.3,2.91513016]
[1748953788772,8.39870963,2606.4,2606.3,2.91513016]
[1748953789077,4.562,2606.4,2606.3,2.91513016]
[1748953789278,0.6,2606.4,2606.3,2.91513016]
[1748953789793,3.961,2606.4,2606.3,2.91513016]
[1748953790372,7.79770963,2606.4,2606.3,2.91513016]
[1748953790699,8.57748059,2606.4,2606.3,2.91513016]
[1748953791206,3.83692987,2606.3,2606.1,2.91513016]
[1748953791374,3.83685684,2606.3,2606.1,2.91513016]
[1748953791712,3.83700406,2606.2,2606.1,2.91513016]
[1748953791905,3.83686502,2606.3,2606.1,2.91513016]
[1748953792406,8.57753995,2606.4,2606.1,2.91513016]
[1748953792618,4.69469526,2606.3,2606.1,2.91513016]
[1748953792913,4.69462036,2606.3,2606.1,2.91513016]
[1748953793212,3.959,2606.5,2606.1,2.91513016]
[1748953793416,3.959,2606.5,2606.2,2.91513016]
[1748953793417,0.7712,2606.4,2606.2,2.91513016]
[1748953793773,4.559,2606.3,2606.2,2.91513016]
[1748953794204,0.6,2606.3,2606.2,2.91513016]
[1748953794404,4.7292,2606.4,2606.2,2.91513016]
[1748953794586,0.85657978,2606.3,2606.2,2.91513016]
[1748953795512,8.56594126,2606.4,2606.2,2.91513016]
[1748953797230,0.7511,2606.7,2606.2,2.91513016]
[1748953797390,3.83658677,2606.5,2606.4,2.91513016]
[1748953798224,0.7511,2606.7,2606.4,2.91513016]
[1748953798419,7.79046784,2606.6,2606.0,3.83716853]
[1748953798618,5.19177337,2606.6,2606.5,2.91513016]
[1748953798819,9.02818862,2606.6,2606.5,2.91513016]
[1748953799120,5.07418862,2606.6,2606.5,2.91513016]
[1748953799286,7.79041525,2606.6,2606.5,2.91513016]
[1748953799491,3.954,2606.6,2606.5,2.91513016]
[1748953800226,7.79041525,2606.6,2606.5,2.91513016]
[1748953800893,7.78841525,2606.6,2606.5,2.91513016]
[1748953801909,3.952,2606.6,2606.5,2.91513016]
[1748953802251,5.18956292,2606.6,2606.5,2.91513016]
[1748953802530,3.83730985,2606.0,2605.7,2.91513016]
[1748953802826,3.952,2605.9,2605.8,8.0]
[1748953803000,0.8217,2606.1,2605.8,2.91513016]
[1748953803194,4.7727,2606.1,2606.0,2.91513016]
[1748953803390,7.95,2606.9,2606.0,2.91513016]
[1748953803391,0.8324,2606.3,2606.0,2.91513016]
[1748953803598,7.95,2606.9,2605.9,2.91513016]
[1748953803599,0.7551,2606.5,2605.9,2.91513016]
[1748953803798,0.7551,2606.5,2606.2,3.83692907]
[1748953804002,0.7551,2606.8,2605.9,2.91513016]
[1748953804424,3.951,2606.7,2606.1,3.83702629]
[1748953804611,3.951,2606.7,2606.2,3.83691997]
[1748953804812,4.59133637,2606.8,2606.6,2.91513016]
[1748953805132,4.79773201,2606.7,2606.6,2.91513016]
[1748953805514,8.63400008,2606.7,2606.6,2.91513016]
[1748953806034,8.63400008,2606.7,2606.4,2.91513016]
[1748953806035,3.83648275,2606.6,2606.4,2.91513016]
[1748953806538,3.83656244,2606.5,2606.4,2.91513016]
[1748953806735,3.83644643,2606.6,2606.4,2.91513016]
[1748953807037,4.77535717,2606.6,2606.4,2.91513016]
[1748953807252,0.93891074,2606.6,2606.4,2.91513016]
[1748953807617,4.77532898,2606.6,2606.4,2.91513016]
[1748953808116,3.83656244,2606.5,2606.2,2.91513016]
[1748953808317,7.78665757,2606.5,2606.2,2.91513016]
[1748953808542,7.78665757,2606.5,2606.4,2.91513016]
[1748953808745,3.95,2606.5,2606.4,2.91513016]
[1748953808950,3.95,2606.5,2606.0,8.0]
[1748953809243,4.7596,2606.5,2606.3,2.91513016]
[1748953809444,0.47596,2606.4,2606.3,2.91513016]
[1748953810021,3.949,2606.4,2606.3,2.91513016]
[1748953811852,7.78571181,2606.4,2605.8,11.83750737]
[1748953812053,4.59925594,2606.1,2605.8,2.91513016]
[1748953812357,3.948,2606.0,2605.8,2.91513016]
[1748953813152,0.7621,2606.1,2605.8,2.91513016]
[1748953813452,1.23311,2606.1,2606.0,2.91513016]
[1748953813613,4.7091,2606.1,2606.0,2.91513016]
[1748953813817,7.93,2606.8,2606.0,2.91513016]
[1748953814017,11.76612091,2606.8,2606.7,2.91513016]
[1748953814252,11.76612091,2606.8,2606.3,2.91513016]
[1748953814253,3.83660584,2606.5,2606.3,2.91513016]
[1748953814422,3.947,2606.4,2606.3,2.91513016]
[1748953814622,5.53035196,2606.4,2606.3,2.91513016]
[1748953815847,9.36706159,2606.4,2606.3,2.91513016]
[1748953816050,5.53035196,2606.4,2606.3,2.91513016]
[1748953817639,1.58235196,2606.4,2606.3,2.91513016]
[1748953817946,0.8136,2606.7,2606.4,3.83664082]
[1748953818256,0.8136,2606.7,2606.6,2.91513016]
[1748953818458,4.7586,2606.7,2606.6,2.91513016]
[1748953819828,5.3586,2606.7,2606.6,2.91513016]
[1748953820029,5.3566,2606.7,2606.6,2.91513016]
[1748953820251,6.27786005,2606.7,2606.6,2.91513016]
[1748953821264,5.27786005,2606.7,2606.6,2.91513016]
[1748953821560,4.86426005,2606.7,2606.6,2.91513016]
[1748953822053,8.70052812,2606.7,2606.6,2.91513016]
[1748953824359,9.51962812,2606.7,2606.6,2.91513016]
[1748953824855,5.67936005,2606.7,2606.6,2.91513016]
[1748953826565,9.51562812,2606.7,2606.6,2.91513016]
[1748953827277,5.67936005,2606.7,2606.6,2.91513016]
[1748953827464,9.51562812,2606.7,2606.6,2.91513016]
[1748953829664,5.57662812,2606.7,2606.6,2.91513016]
[1748953829867,9.51062812,2606.7,2606.6,2.91513016]
[1748953830484,5.67436005,2606.7,2606.6,2.91513016]
[1748953830693,9.51062812,2606.7,2606.6,2.91513016]
[1748953831267,5.67436005,2606.7,2606.6,2.91513016]
[1748953831572,9.51062812,2606.7,2606.6,2.91513016]
[1748953833075,10.11062812,2606.7,2606.6,2.91513016]
[1748953834783,6.27036005,2606.7,2606.6,2.91513016]
[1748953834985,2.34036005,2606.7,2606.6,2.91513016]
[1748953835284,1.52126005,2606.7,2606.6,2.91513016]
[1748953835582,4.53,2606.7,2606.6,2.91513016]
[1748953836085,8.36626807,2606.7,2606.6,2.91513016]
[1748953836782,8.36626807,2606.7,2606.6,2.91513016]
[1748953836982,0.7816,2606.6,2605.8,0.2997]
[1748953837190,3.83693166,2606.3,2606.1,2.91513016]
[1748953837364,7.76500406,2606.2,2606.1,2.91513016]
[1748953838485,3.928,2606.2,2606.1,2.91513016]
[1748953840474,0.7816,2606.6,2606.1,2.91513016]
[1748953840794,0.7816,2606.6,2606.4,2.91513016]
[1748953840795,0.52179481,2606.5,2606.4,2.91513016]
[1748953840967,4.62429154,2606.8,2606.4,2.91513016]
[1748953841173,4.62422091,2606.8,2606.7,2.91513016]
[1748953841373,8.55322091,2606.8,2606.7,2.91513016]
[1748953841783,8.55222091,2606.8,2606.7,2.91513016]
[1748953842386,10.39793212,2606.8,2606.7,2.91513016]
[1748953844980,6.46993212,2606.8,2606.7,2.91513016]
[1748953845180,8.36212091,2606.8,2606.7,2.91513016]
[1748953845381,4.526,2606.8,2606.7,2.91513016]
[1748953845795,8.36212091,2606.8,2606.7,2.91513016]
[1748953850239,4.43612091,2606.8,2606.7,2.91513016]
[1748953850414,4.524,2606.8,2606.7,2.91513016]
[1748953851021,8.36012091,2606.8,2606.7,2.91513016]
[1748953851227,9.58171618,2606.8,2606.7,2.91513016]
[1748953851433,5.74559527,2606.8,2606.7,2.91513016]
[1748953851734,8.36012091,2606.8,2606.7,2.91513016]
[1748953852638,0.6,2606.8,2606.7,2.91513016]
[1748953852946,4.523,2606.8,2606.7,2.91513016]
[1748953855455,0.6,2606.8,2606.7,2.91513016]
[1748953855608,4.52,2606.8,2606.7,2.91513016]
[1748953856509,0.6,2606.8,2606.7,2.91513016]
[1748953856715,3.92,2606.8,2606.7,2.91513016]
[1748953860978,3.916,2606.8,2606.7,2.91513016]
[1748953863487,8.14572091,2606.8,2606.3,0.2997]
[1748953863698,4.62153832,2606.7,2606.6,2.91513016]
[1748953863838,3.83723895,2606.1,2606.0,2.91513016]
[1748953864042,3.83715129,2606.1,2606.0,2.91513016]
[1748953864484,7.75308274,2606.2,2606.0,2.91513016]
[1748953864687,1.1590025,2606.1,2606.0,2.91513016]
[1748953865367,7.75310908,2606.2,2606.0,2.91513016]
[1748953865682,3.917,2606.1,2606.0,2.91513016]
[1748953866070,3.917,2606.3,2606.0,2.91513016]
[1748953866243,0.7852,2606.5,2606.2,2.91513016]
[1748953866441,4.85437575,2606.7,2606.4,2.91513016]
[1748953866442,1.8448,2606.7,2606.4,2.91513016]
[1748953866639,4.14084,2606.6,2606.3,3.83685181]
[1748953866843,3.92,2606.6,2606.4,11.836631]
[1748953867077,3.92,2606.6,2606.3,8.0]
[1748953867256,3.92,2606.6,2606.1,0.2997]
[1748953867457,3.92,2606.6,2606.1,4.13681437]
[1748953867851,7.75641525,2606.6,2606.5,2.91513016]
[1748953868057,8.91567454,2606.6,2606.5,2.91513016]
[1748953868255,5.07925929,2606.6,2606.5,2.91513016]
[1748953868942,3.92,2606.6,2606.5,2.91513016]
[1748953869846,3.92,2606.6,2606.1,4.13678]
[1748953870167,3.92,2606.6,2606.5,2.91513016]
[1748953870947,3.83633226,2606.7,2606.5,2.91513016]
[1748953871160,4.518,2606.6,2606.5,2.91513016]
[1748953871360,5.35343594,2606.6,2606.5,2.91513016]
[1748953872001,0.6,2606.6,2606.5,2.91513016]
[1748953872153,0.8468,2606.9,2606.5,2.91513016]
[1748953872154,3.918,2606.7,2606.5,2.91513016]
[1748953872353,3.918,2606.7,2606.6,2.91513016]
[1748953875401,4.68280507,2606.9,2606.6,2.91513016]
[1748953875560,3.917,2606.8,2606.6,2.91513016]
[1748953876401,7.75316595,2606.8,2606.6,2.91513016]
[1748953876607,8.99673342,2606.8,2606.6,2.91513016]
[1748953877475,5.16056747,2606.8,2606.6,2.91513016]
[1748953877677,1.24356747,2606.8,2606.6,2.91513016]
[1748953877987,3.916,2606.7,2606.4,11.8366445]
[1748953878196,3.916,2606.7,2606.6,2.91513016]
[1748953881403,4.68279687,2606.9,2606.6,2.91513016]
[1748953881621,3.913,2606.8,2606.4,8.0]
[1748953881823,3.913,2606.8,2606.7,2.91513016]
[1748953882020,5.15616271,2606.8,2606.7,2.91513016]
[1748953885518,8.99028362,2606.8,2606.7,2.91513016]
[1748953885704,5.15416271,2606.8,2606.7,2.91513016]
[1748953886196,5.75416271,2606.8,2606.7,2.91513016]
[1748953886720,4.511,2606.8,2606.7,2.91513016]
[1748953891021,0.7956,2606.7,2606.4,8.0]
[1748953891231,0.7956,2606.7,2606.3,2.91513016]
[1748953891534,3.83661399,2606.5,2606.3,2.91513016]
[1748953891828,4.36712493,2606.6,2606.4,2.91513016]
[1748953891989,3.911,2606.5,2606.4,2.91513016]
[1748953897240,7.74756244,2606.5,2606.4,2.91513016]
[1748953897465,3.83701801,2606.2,2606.1,2.91513016]
[1748953897606,7.74901801,2606.2,2606.1,2.91513016]
[1748953902362,8.56501801,2606.2,2606.1,2.91513016]
[1748953906260,8.56501801,2606.2,2605.2,0.70040021]
[1748953906261,4.728,2606.2,2605.2,0.70040021]
[1748953906438,3.83765128,2605.8,2605.7,2.91513016]
[1748953906637,7.74965128,2605.8,2605.7,2.91513016]
[1748953907264,3.912,2605.8,2605.7,2.91513016]
[1748953907837,3.83723398,2606.1,2605.7,2.91513016]
[1748953908037,2.57865624,2606.4,2606.0,2.91513016]
[1748953908240,5.64066733,2606.4,2606.3,2.91513016]
[1748953908443,9.55266733,2606.4,2606.3,2.91513016]
[1748953908667,8.53766733,2606.4,2606.3,2.91513016]
[1748953909780,9.13766733,2606.4,2606.3,2.91513016]
[1748953910465,3.83700406,2606.2,2606.1,2.91513016]
[1748953911189,7.74900406,2606.2,2606.1,2.91513016]
[1748953911355,0.91376673,2606.3,2606.1,2.91513016]
[1748953911682,3.912,2606.3,2606.1,2.91513016]
[1748953911984,3.912,2606.2,2606.1,2.91513016]
[1748953914666,7.74900406,2606.2,2606.1,2.91513016]
[1748953914863,8.58390447,2606.2,2606.1,2.91513016]
[1748953918693,0.6,2606.4,2606.1,2.91513016]
[1748953918997,0.6,2606.4,2606.3,2.91513016]
[1748953919590,4.512,2606.4,2606.3,2.91513016]
[1748953920990,8.34870963,2606.4,2606.3,2.91513016]
[1748953921159,4.512,2606.4,2606.3,2.91513016]
[1748953921783,0.6,2606.4,2606.3,2.91513016]
[1748953921989,3.912,2606.6,2606.3,11.495038]
[1748953922193,3.912,2606.6,2606.5,2.91513016]
[1748953924802,3.83616444,2606.8,2606.5,2.91513016]
[1748953925007,3.912,2606.6,2606.3,11.83681312]
[1748953925301,3.912,2606.6,2606.5,2.91513016]
[1748953928110,4.87110339,2606.9,2606.5,2.91513016]
[1748953928328,3.912,2606.8,2606.4,3.83669377]
[1748953929076,3.912,2606.8,2606.5,3.83653152]
[1748953929276,2.77377573,2606.9,2606.5,3.83653152]
[1748953929601,3.912,2606.7,2606.4,3.83662295]
[1748953929802,0.02,2606.9,2606.6,2.91513016]
[1748953929980,3.912,2606.8,2606.4,3.83662295]
[1748953931187,3.912,2606.8,2606.7,2.91513016]
[1748953934782,7.74712091,2606.8,2606.7,2.91513016]
[1748953934982,8.523833,2606.8,2606.7,2.91513016]
[1748953935182,3.83652003,2606.6,2606.5,2.91513016]
[1748953936928,3.8367646,2606.4,2605.7,4.85167575]
[1748953937125,3.911,2606.3,2605.9,6.75257501]
[1748953937623,3.911,2606.3,2605.5,4.60596645]
[1748953937624,3.83706262,2606.2,2605.6,3.83788445]
[1748953937832,3.83707911,2606.2,2605.8,8.0]
[1748953938188,7.74792748,2606.3,2606.1,2.91513016]
[1748953938391,3.911,2606.3,2606.1,2.91513016]
[1748953938979,7.7478876,2606.3,2606.1,2.91513016]
[1748953939436,3.83700406,2606.2,2606.1,2.91513016]
[1748953939588,4.99548728,2606.2,2606.1,2.91513016]
[1748953939906,5.76528728,2606.2,2606.1,2.91513016]
[1748953942823,1.92828322,2606.2,2606.1,2.91513016]
[1748953943123,0.8264,2606.4,2606.1,2.91513016]
[1748953943294,3.911,2606.3,2605.9,6.75245515]
[1748953943498,3.911,2606.3,2606.2,2.91513016]
[1748953944084,7.74785684,2606.3,2606.2,2.91513016]
[1748953944285,8.98895711,2606.3,2606.2,2.91513016]
[1748953945384,1.24110027,2606.3,2606.2,2.91513016]
[1748953945588,3.911,2606.3,2606.2,2.91513016]
[1748953946225,7.74785684,2606.3,2606.2,2.91513016]
[1748953949698,7.93,2606.7,2606.2,2.91513016]
[1748953950047,3.911,2606.6,2606.1,3.83715129]
[1748953950218,7.74741649,2606.6,2606.1,3.83715129]
[1748953950819,7.74741649,2606.6,2606.0,3.83721967]
[1748953950820,3.8366003,2606.5,2606.0,3.83721967]
[1748953951158,9.85370933,2606.6,2606.4,2.91513016]
[1748953953127,3.83656244,2606.5,2606.4,2.91513016]
[1748953954829,3.83656244,2606.5,2605.9,6.75250685]
[1748953954830,3.83656244,2606.5,2606.0,3.83728611]
[1748953955036,9.85370485,2606.6,2606.4,2.91513016]
[1748953955231,6.07300358,2606.5,2606.4,2.91513016]
[1748953955444,3.911,2606.5,2606.4,2.91513016]
[1748953958772,7.93,2606.7,2606.4,2.91513016]
[1748953958981,7.93,2606.7,2606.6,2.91513016]
[1748953959137,11.841,2606.7,2606.6,2.91513016]
[1748953959583,7.93,2606.7,2606.6,2.91513016]
[1748953959779,11.841,2606.7,2606.6,2.91513016]
[1748953960090,3.85605037,2606.9,2606.6,2.91513016]
[1748953960091,0.02,2606.9,2606.6,2.91513016]
[1748953960232,3.911,2606.7,2606.6,2.91513016]
[1748953960784,0.02,2606.9,2606.6,2.91513016]
[1748953961079,3.911,2606.7,2606.6,2.91513016]
[1748953961540,0.02,2606.9,2606.6,2.91513016]
[1748953961750,3.911,2606.7,2606.5,3.83648527]